fUST/lending_fUST_20240801
["ID","MTS","AMOUNT","RATE_DAILY","PERIOD"]
[333776918,1722481844024,-433.767581,0.00013972,2]
[333776919,1722481844034,-433.767581,0.00013972,2]
[333776920,1722481844045,-500.0,0.00013972,2]
[333776921,1722481844055,-1677.14,0.00013972,2]
[333776922,1722481844064,-194.045772,0.00013972,2]
[333776923,1722481844074,-194.045772,0.00013972,2]
[333776924,1722481844083,-301.13484717,0.00013972,2]
[333776925,1722481844093,-692.17,0.00013972,2]
[333776926,1722481844102,-500.0,0.00013972,2]
[333776927,1722481844112,-392.655776,0.00013972,2]
[333776928,1722481844122,-928.99,0.00013972,2]
[333776929,1722481844131,-392.655776,0.00013972,2]
[333776930,1722481844140,-826.66,0.00013972,2]
[333776931,1722481844150,-979.04,0.00013972,2]
[333776932,1722481844160,-500.0,0.00013972,2]
[333776933,1722481844169,-500.0,0.00013972,2]
[333776934,1722481844179,-726.59,0.00013972,2]
[333776935,1722481844188,-982.43,0.00013972,2]
[333776936,1722481844197,-514.53,0.00013972,2]
[333776937,1722481844207,-500.0,0.00013972,2]
[333776938,1722481844217,-598.51,0.00013972,2]
[333776939,1722481844227,-1022.93,0.00013972,2]
[333776940,1722481844236,-500.0,0.00013972,2]
[333776941,1722481844246,-1201.11,0.00013972,2]
[333776942,1722481844256,-151.0,0.00013972,2]
[333776943,1722481844265,-644.04,0.00013972,2]
[333776944,1722481844275,-609.66,0.00013972,2]
[333776945,1722481844284,-500.0,0.00013972,2]
[333776946,1722481844294,-500.0,0.00013972,2]
[333776947,1722481844304,-869.81,0.00013972,2]
[333776948,1722481844314,-1007.88,0.00013972,2]
[333776949,1722481844324,-2007.16,0.00013972,2]
[333776950,1722481844333,-500.0,0.00013972,2]
[333776951,1722481844343,-151.673486,0.00013972,2]
[333776952,1722481844353,-500.0,0.00013972,2]
[333776953,1722481844363,-223.793758,0.00013972,2]
[333776954,1722481844373,-223.793758,0.00013972,2]
[333776955,1722481844383,-1607.99,0.00013972,2]
[333776956,1722481844393,-500.0,0.00013972,2]
[333776957,1722481844404,-577.314512,0.00013972,2]
[333776958,1722481844414,-500.0,0.00013972,2]
[333776959,1722481844424,-151.0,0.00013972,2]
[333776960,1722481844433,-582.3,0.00013972,2]
[333776961,1722481844443,-840.15,0.00013972,2]
[333776962,1722481844452,-577.314512,0.00013972,2]
[333776963,1722481844463,-500.0,0.00013972,2]
[333776964,1722481844473,-1531.93,0.00013972,2]
[333776965,1722481844483,-2223.44,0.00013972,2]
[333776966,1722481844495,-517.32,0.00013972,2]
[333776967,1722481844504,-1057.96,0.00013972,2]
[333776968,1722481844513,-1181.77,0.00013972,2]
[333776969,1722481844523,-704.99,0.00013972,2]
[333776970,1722481844532,-500.0,0.00013972,2]
[333776971,1722481844541,-500.0,0.00013972,2]
[333776972,1722481844550,-825.41,0.00013972,2]
[333776973,1722481844559,-5877.26,0.00013972,2]
[333776974,1722481844569,-602.08,0.00013972,2]
[333776975,1722481844578,-500.0,0.00013972,2]
[333776976,1722481844588,-500.0,0.00013972,2]
[333776977,1722481844598,-2171.21354879,0.00014146,2]
[333776978,1722481844607,-150.112233,0.000142,2]
[333776979,1722481844616,-500.0,0.00014225,2]
[333776980,1722481844626,-151.0,0.00014226,2]
[333776981,1722481844635,-202.29727,0.00014226,2]
[333776982,1722481844645,-202.29727,0.00014226,2]
[333776983,1722481844654,-151.0,0.00014226,2]
[333776984,1722481844663,-151.0,0.00014226,2]
[333776985,1722481844673,-1272.81,0.00014234,2]
[333776986,1722481844682,-151.0,0.00014235,2]
[333776987,1722481844691,-151.0,0.00014235,2]
[333776988,1722481844700,-151.0,0.00014235,2]
[333776989,1722481844710,-151.0,0.00014235,2]
[333776990,1722481844719,-151.0,0.00014235,2]
[333776991,1722481844729,-500.0,0.00014235,2]
[333776992,1722481844738,-500.0,0.00014235,2]
[333776993,1722481844752,-1272.81,0.00014235,2]
[333776994,1722481844762,-33612.937839,0.00014236,2]
[333776995,1722481844771,-49633.69702813,0.00014236,5]
[333776996,1722481844783,-1631.31295077,0.00014236,2]
[333776997,1722481844793,-151.0,0.00014236,2]
[333776998,1722481844802,-151.0,0.00014236,2]
[333776999,1722481844811,-151.0,0.00014236,2]
[333777000,1722481844821,-151.0,0.00014236,2]
[333777001,1722481844830,-341.046348,0.00014236,2]
[333777002,1722481844840,-341.046348,0.00014236,2]
[333777003,1722481844849,-433.767581,0.00014236,2]
[333777004,1722481844859,-433.767581,0.00014236,2]
[333777005,1722481844868,-194.045772,0.00014236,2]
[333777006,1722481844878,-194.045772,0.00014236,2]
[333777007,1722481844891,-392.655776,0.00014236,2]
[333777008,1722481844900,-392.655776,0.00014236,2]
[333777009,1722481844910,-152.133188,0.00014236,2]
[333777010,1722481844920,-223.793758,0.00014236,2]
[333777011,1722481844931,-223.793758,0.00014236,2]
[333777012,1722481844940,-223.793758,0.00014236,2]
[333777013,1722481844950,-223.793758,0.00014236,2]
[333777014,1722481844960,-577.314512,0.00014236,2]
[333777015,1722481844970,-577.314512,0.00014236,2]
[333777016,1722481844981,-151.0,0.00014236,2]
[333777017,1722481844991,-151.0,0.00014236,2]
[333777018,1722481845002,-577.314512,0.00014236,2]
[333777019,1722481845012,-577.314512,0.00014236,2]
[333777020,1722481845022,-31350.98200294,0.00014236,2]
[333777021,1722481845396,-500.0,0.00013698,2]
[333777022,1722481845406,-491.01255579,0.00014236,2]
[333777023,1722481845442,-769.74657885,0.00014236,2]
[333777049,1722482745171,273.37336231,9.9e-05,2]
[333777050,1722482757118,273.37336231,9.9e-05,2]
[333777051,1722482765684,273.37336231,9.9e-05,2]
[333777054,1722482773770,273.37336231,9.9e-05,2]
[333777055,1722482781711,273.37336231,9.9e-05,2]
[333777056,1722482791321,273.37336231,9.9e-05,2]
[333777057,1722482799869,273.37336231,9.9e-05,2]
[333777058,1722482809125,273.37336231,9.9e-05,2]
[333777059,1722482816929,273.37336231,9.9e-05,2]
[333777060,1722482825837,273.37336231,9.9e-05,2]
[333777065,1722482833687,273.37336231,9.9e-05,2]
[333777067,1722482841827,273.37336231,9.9e-05,2]
[333777069,1722482850328,273.37336231,9.9e-05,2]
[333777071,1722482852266,627.77330032,9.9e-05,2]
[333777072,1722482858532,273.37336231,9.9e-05,2]
[333777076,1722482866575,273.37336231,9.9e-05,2]
[333777078,1722482874777,273.37336231,9.9e-05,2]
[333777081,1722482882736,273.37336231,9.9e-05,2]
[333777082,1722482891529,273.37336231,9.9e-05,2]
[333777084,1722482900443,273.37336231,9.9e-05,2]
[333777088,1722482908585,273.37336231,9.9e-05,2]
[333777090,1722482916430,273.37336231,9.9e-05,2]
[333777091,1722482924498,273.37336231,9.9e-05,2]
[333777092,1722482926931,2753.40843509,0.0001,2]
[333777093,1722482933680,273.37336231,9.9e-05,2]
[333777095,1722482941777,273.37336231,9.9e-05,2]
[333777096,1722482949725,273.37336231,9.9e-05,2]
[333777098,1722482957900,273.37336231,9.9e-05,2]
[333777099,1722482966388,273.37336231,9.9e-05,2]
[333777101,1722482975437,273.37336231,9.9e-05,2]
[333777102,1722482983434,273.37336231,9.9e-05,2]
[333777104,1722482992032,273.37336231,9.9e-05,2]
[333777105,1722482999919,273.37336231,9.9e-05,2]
[333777106,1722483008139,273.37336231,9.9e-05,2]
[333777107,1722483016811,273.37336231,9.9e-05,2]
[333777108,1722483024891,273.37336231,9.9e-05,2]
[333777129,1722483032925,273.37336231,9.9e-05,2]
[333777159,1722483033238,-1629.78009808,0.00012,2]
[333777162,1722483033251,-3284.88206572,0.00012529,2]
[333777165,1722483033266,-258.18004786,0.00012529,2]
[333777169,1722483033284,-271.87722815,0.00012529,2]
[333777172,1722483033296,-2916.066193,0.00012529,2]
[333777421,1722483041813,-459.74681857,0.00012529,2]
[333777422,1722483041823,-159.587532,0.00012986,2]
[333777423,1722483041832,-506.0,0.00013479,2]
[333777424,1722483041842,-300.0,0.00013574,2]
[333777425,1722483041852,-5010.9852717,0.00013575,4]
[333777426,1722483041862,-2242.12695672,0.00013588,2]
[333777427,1722483041871,-1350.11491407,0.00013598,2]
[333777428,1722483041881,-306.0,0.000136,2]
[333777429,1722483041891,-415.1488708,0.000136,2]
[333777430,1722483041901,-206.9081725,0.000136,2]
[333777431,1722483041910,-17670.33722207,0.00013686,2]
[333777432,1722483042072,273.37336231,9.9e-05,2]
[333777435,1722483043643,-10437.43702866,0.00013686,2]
[333777436,1722483043655,-3657.71515481,0.00013686,2]
[333777437,1722483043666,-4594.27632315,0.00013686,2]
[333777500,1722483047396,-1685.5031226,0.00013686,2]
[333777504,1722483049058,273.37336231,9.9e-05,2]
[333777505,1722483057198,273.37336231,9.9e-05,2]
[333777506,1722483065161,273.37336231,9.9e-05,2]
[333777507,1722483074338,273.37336231,9.9e-05,2]
[333777508,1722483082246,273.37336231,9.9e-05,2]
[333777509,1722483091780,273.37336231,9.9e-05,2]
[333777510,1722483099831,273.37336231,9.9e-05,2]
[333777511,1722483109051,273.37336231,9.9e-05,2]
[333777512,1722483117112,273.37336231,9.9e-05,2]
[333777513,1722483126415,273.37336231,9.9e-05,2]
[333777514,1722483128187,157.32619577,9.9e-05,2]
[333777515,1722483135332,273.37336231,9.9e-05,2]
[333777516,1722483135816,963.26514221,9.9e-05,2]
[333777517,1722483135851,4731.76806872,9.9e-05,2]
[333777518,1722483143436,273.37336231,9.9e-05,2]
[333777519,1722483147456,1070.6419705,9.9e-05,2]
[333777520,1722483152395,273.37336231,9.9e-05,2]
[333777521,1722483160510,273.37336231,9.9e-05,2]
[333777522,1722483168924,273.37336231,9.9e-05,2]
[333777523,1722483177573,273.37336231,9.9e-05,2]
[333777524,1722483185428,273.37336231,9.9e-05,2]
[333777525,1722483193548,273.37336231,9.9e-05,2]
[333777526,1722483201491,273.37336231,9.9e-05,2]
[333777527,1722483210086,273.37336231,9.9e-05,2]
[333777528,1722483218151,273.37336231,9.9e-05,2]
[333777529,1722483226836,273.37336231,9.9e-05,2]
[333777530,1722483234733,273.37336231,9.9e-05,2]
[333777531,1722483243048,273.37336231,9.9e-05,2]
[333777532,1722483251691,273.37336231,9.9e-05,2]
[333777533,1722483260351,273.37336231,9.9e-05,2]
[333777534,1722483268292,273.37336231,9.9e-05,2]
[333777540,1722483278320,273.37336231,9.9e-05,2]
[333777541,1722483286134,273.37336231,9.9e-05,2]
[333777542,1722483294247,273.37336231,9.9e-05,2]
[333777543,1722483302100,273.37336231,9.9e-05,2]
[333777544,1722483310112,273.37336231,9.9e-05,2]
[333777545,1722483318059,273.37336231,9.9e-05,2]
[333777546,1722483326303,273.37336231,9.9e-05,2]
[333777547,1722483334886,273.37336231,9.9e-05,2]
[333777548,1722483342993,273.37336231,9.9e-05,2]
[333777549,1722483351337,273.37336231,9.9e-05,2]
[333777550,1722483359652,273.37336231,9.9e-05,2]
[333777551,1722483367488,273.37336231,9.9e-05,2]
[333777552,1722483375573,273.37336231,9.9e-05,2]
[333777553,1722483383432,273.37336231,9.9e-05,2]
[333777554,1722483392103,273.37336231,9.9e-05,2]
[333777555,1722483399971,273.37336231,9.9e-05,2]
[333777556,1722483408711,273.37336231,9.9e-05,2]
[333777557,1722483416527,273.37336231,9.9e-05,2]
[333777558,1722483424766,273.37336231,9.9e-05,2]
[333777559,1722483432560,273.37336231,9.9e-05,2]
[333777560,1722483441309,273.37336231,9.9e-05,2]
[333777561,1722483449229,273.37336231,9.9e-05,2]
[333777562,1722483458343,273.37336231,9.9e-05,2]
[333777563,1722483466667,273.37336231,9.9e-05,2]
[333777564,1722483475021,273.37336231,9.9e-05,2]
[333777565,1722483482847,273.37336231,9.9e-05,2]
[333777566,1722483492115,273.37336231,9.9e-05,2]
[333777567,1722483500522,273.37336231,9.9e-05,2]
[333777568,1722483508655,273.37336231,9.9e-05,2]
[333777569,1722483518359,273.37336231,9.9e-05,2]
[333777570,1722483526948,273.37336231,9.9e-05,2]
[333777571,1722483534933,273.37336231,9.9e-05,2]
[333777572,1722483543757,273.37336231,9.9e-05,2]
[333777573,1722483551647,273.37336231,9.9e-05,2]
[333777574,1722483560759,273.37336231,9.9e-05,2]
[333777575,1722483568672,273.37336231,9.9e-05,2]
[333777576,1722483578143,273.37336231,9.9e-05,2]
[333777577,1722483585985,273.37336231,9.9e-05,2]
[333777580,1722483594017,273.37336231,9.9e-05,2]
[333777581,1722483601874,273.37336231,9.9e-05,2]
[333777582,1722483610128,273.37336231,9.9e-05,2]
[333777583,1722483618016,273.37336231,9.9e-05,2]
[333777584,1722483626107,273.37336231,9.9e-05,2]
[333777588,1722483634700,273.37336231,9.9e-05,2]
[333777589,1722483642853,273.37336231,9.9e-05,2]
[333777590,1722483650850,273.37336231,9.9e-05,2]
[333777591,1722483660484,273.37336231,9.9e-05,2]
[333777592,1722483668378,273.37336231,9.9e-05,2]
[333777593,1722483676558,273.37336231,9.9e-05,2]
[333777594,1722483684368,273.37336231,9.9e-05,2]
[333777595,1722483693188,273.37336231,9.9e-05,2]
[333777596,1722483701545,273.37336231,9.9e-05,2]
[333777597,1722483710484,273.37336231,9.9e-05,2]
[333777598,1722483719161,273.37336231,9.9e-05,2]
[333777599,1722483727344,273.37336231,9.9e-05,2]
[333777600,1722483735516,273.37336231,9.9e-05,2]
[333777601,1722483744198,273.37336231,9.9e-05,2]
[333777602,1722483756167,273.37336231,9.9e-05,2]
[333777603,1722483764422,273.37336231,9.9e-05,2]
[333777604,1722483772859,273.37336231,9.9e-05,2]
[333777605,1722483781584,273.37336231,9.9e-05,2]
[333777606,1722483782854,155.24979436,9.999e-05,2]
[333777607,1722483789565,273.37336231,9.9e-05,2]
[333777608,1722483797674,273.37336231,9.9e-05,2]
[333777609,1722483805680,273.37336231,9.9e-05,2]
[333777610,1722483813907,273.37336231,9.9e-05,2]
[333777611,1722483821782,273.37336231,9.9e-05,2]
[333777612,1722483829928,273.37336231,9.9e-05,2]
[333777613,1722483837802,273.37336231,9.9e-05,2]
[333777614,1722483846589,273.37336231,9.9e-05,2]
[333777615,1722483854424,273.37336231,9.9e-05,2]
[333777616,1722483863125,273.37336231,9.9e-05,2]
[333777617,1722483871846,273.37336231,9.9e-05,2]
[333777618,1722483880746,203.73093016,9.9e-05,2]
[333777653,1722484232646,-482.18,0.00010959,2]
[333777654,1722484232656,-300.0,0.00011851,2]
[333777655,1722484232666,-300.0,0.00011851,2]
[333777656,1722484232682,-24900.0,0.00011852,2]
[333777657,1722484232695,-158.518194,0.000119,2]
[333777658,1722484232705,-158.518194,0.00011956,2]
[333777659,1722484232715,-267.09204488,0.00012,2]
[333777660,1722484232724,-155.06621248,0.00012,2]
[333777661,1722484232735,-509.28215862,0.00012,2]
[333777662,1722484232745,-158.518194,0.00012013,2]
[333777663,1722484232756,-158.518194,0.00012069,2]
[333777664,1722484232767,-158.518194,0.00012125,2]
[333777666,1722484232777,-158.518194,0.00012182,2]
[333777668,1722484232787,-158.518194,0.00012238,2]
[333777670,1722484232796,-158.518194,0.00012295,2]
[333777672,1722484232807,-294.1746601,0.000123,2]
[333777674,1722484232816,-306.8795584,0.000123,2]
[333777676,1722484232828,-306.0,0.00012329,2]
[333777678,1722484232839,-206.9081725,0.00012329,2]
[333777680,1722484232849,-153.0,0.00012329,2]
[333777682,1722484232859,-158.518194,0.00012351,2]
[333777684,1722484232868,-158.518194,0.00012407,2]
[333777686,1722484232878,-158.518194,0.00012464,2]
[333777688,1722484232888,-153.0,0.000125,2]
[333777690,1722484232905,-294.1746601,0.000125,2]
[333777692,1722484232915,-294.1746601,0.000125,2]
[333777694,1722484232924,-206.9081725,0.000125,2]
[333777695,1722484232935,-153.0,0.000125,2]
[333777697,1722484232945,-158.518194,0.0001252,2]
[333777699,1722484232954,-206.9081725,0.00012878,2]
[333777701,1722484232963,-159.587532,0.00012986,2]
[333777703,1722484232973,-294.1746601,0.00013,2]
[333777705,1722484232982,-294.1746601,0.00013,2]
[333777707,1722484232992,-268.8608665,0.00013,2]
[333777709,1722484233002,-294.1746601,0.00013,2]
[333777711,1722484233011,-206.9081725,0.00013,2]
[333777713,1722484233022,-294.1445528,0.00013,2]
[333777715,1722484233033,-531.0335577,0.00013,2]
[333777717,1722484233044,-420.0,0.00013036,2]
[333777719,1722484233054,-588.1388569,0.00013078,2]
[333777721,1722484233064,-206.9081725,0.00013151,2]
[333777723,1722484233074,-448.6013377,0.00013151,2]
[333777725,1722484233083,-80.24310037,0.00013178,2]
[333777960,1722484238467,-126.66507213,0.00013178,2]
[333777961,1722484238478,-294.1746601,0.00013178,2]
[333777962,1722484238490,-153.0,0.00013178,2]
[333777963,1722484238503,-206.9081725,0.00013178,2]
[333777964,1722484238513,-4439.36638403,0.00013274,2]
[333777965,1722484238540,-869.66305061,0.00013274,2]
[333777966,1722484238550,-294.1746601,0.00013278,2]
[333777967,1722484238563,-1080.09193128,0.00013597,2]
[333777968,1722484238574,-1149.31885081,0.00013686,2]
[333777969,1722484238613,-412.80292201,0.00013686,2]
[333777989,1722484243524,-8116.56683472,0.00013686,2]
[333778014,1722485346146,-1187.4699645,0.00012536,2]
[333778057,1722485432759,-512.20821312,0.00012436,2]
[333778059,1722485432769,-604.42130723,0.00012536,2]
[333778111,1722485438683,-5041.91749717,0.00012536,2]
[333778112,1722485438694,-188.5717773,0.00012752,2]
[333778113,1722485438704,-159.587532,0.00012986,2]
[333778114,1722485438714,-300.0,0.00013412,2]
[333778115,1722485438723,-5309.02943464,0.00013413,2]
[333778116,1722485438733,-1071.58563558,0.00013597,2]
[333778117,1722485438743,-1071.58563557,0.00013597,2]
[333778118,1722485438753,-1071.58563557,0.00013598,2]
[333778119,1722485438763,-1071.58563557,0.00013598,2]
[333778120,1722485438774,-1071.58563557,0.00013598,2]
[333778121,1722485438784,-306.464297,0.000136,2]
[333778122,1722485438795,-307.12704713,0.00013686,2]
[333778140,1722485440737,-13401.52980671,0.00013686,2]
[333778141,1722485440750,-190.4105277,0.00013686,2]
[333778142,1722485440761,-500.0,0.00013687,2]
[333778143,1722485440773,-500.0,0.00013687,2]
[333778144,1722485440786,-179.48279232,0.00013688,5]
[333778146,1722485440797,-8322.7443986,0.00013688,2]
[333778164,1722485443794,-1877.55337611,0.00012536,2]
[333778173,1722485447063,-2262.5155528,0.00012536,2]
[333778174,1722485447074,-294.1445528,0.000135,2]
[333778175,1722485447085,-1961.86108713,0.00013586,2]
[333778176,1722485447095,-203868.3489224,0.00013688,2]
[333778177,1722485447105,-500.0,0.00013697,2]
[333778178,1722485447114,-500.0,0.00013697,2]
[333778179,1722485447124,-500.0,0.00013697,2]
[333778180,1722485447135,-500.0,0.00013697,2]
[333778181,1722485447145,-28875.13193142,0.00013698,5]
[333778182,1722485447154,-501.13824931,0.00013698,2]
[333778183,1722485447164,-500.0,0.00013698,2]
[333778184,1722485447174,-512.74343956,0.00013698,2]
[333778185,1722485447184,-500.0,0.00013698,2]
[333778186,1722485447194,-500.0,0.00013698,2]
[333778187,1722485447205,-500.0,0.00013698,2]
[333778188,1722485447214,-501.30116019,0.00013698,2]
[333778189,1722485447224,-502.01252628,0.00013698,2]
[333778190,1722485447234,-507.60650513,0.00013698,2]
[333778191,1722485447243,-500.74104428,0.00013698,2]
[333778192,1722485447253,-317.88805576,0.00013698,2]
[333778193,1722485447263,-500.0,0.00013698,2]
[333778194,1722485447272,-500.0,0.00013698,2]
[333778195,1722485447282,-500.0,0.00013698,2]
[333778196,1722485447292,-500.0,0.00013698,2]
[333778197,1722485447301,-518.51397388,0.00013698,2]
[333778198,1722485447311,-500.0,0.00013698,2]
[333778199,1722485447322,-500.0,0.00013698,2]
[333778200,1722485447332,-500.0,0.00013698,2]
[333778201,1722485447343,-217.85091696,0.00013698,2]
[333778202,1722485447352,-500.0,0.00013698,2]
[333778203,1722485447362,-500.0,0.00013698,2]
[333778204,1722485447371,-500.0,0.00013698,2]
[333778205,1722485447381,-500.73609853,0.00013698,2]
[333778206,1722485447392,-500.0,0.00013698,2]
[333778207,1722485447400,-500.0,0.00013698,2]
[333778208,1722485447410,-500.0,0.00013698,2]
[333778209,1722485447419,-396.09259449,0.00013698,2]
[333778210,1722485447429,-500.0,0.00013698,2]
[333778211,1722485447439,-500.0,0.00013698,2]
[333778212,1722485447449,-500.0,0.00013698,2]
[333778213,1722485447458,-500.0,0.00013698,2]
[333778214,1722485447468,-500.0,0.00013698,2]
[333778215,1722485447477,-500.0,0.00013698,2]
[333778216,1722485447487,-500.0,0.00013698,2]
[333778217,1722485447498,-507.3824845,0.00013698,2]
[333778218,1722485447507,-501.86843127,0.00013698,2]
[333778219,1722485447517,-151.0,0.00013698,2]
[333778220,1722485447528,-151.0,0.00013698,2]
[333778221,1722485447537,-504.72185137,0.00013698,2]
[333778222,1722485447547,-159.715118,0.00013698,2]
[333778223,1722485447556,-159.715118,0.00013698,2]
[333778224,1722485447565,-159.715118,0.00013698,2]
[333778225,1722485447574,-159.715118,0.00013698,2]
[333778226,1722485447583,-503.25729607,0.00013698,2]
[333778227,1722485447593,-500.91345184,0.00013698,2]
[333778228,1722485447603,-500.0,0.00013698,2]
[333778229,1722485447612,-500.0,0.00013698,2]
[333778230,1722485447621,-500.0,0.00013698,2]
[333778231,1722485447630,-504.98524655,0.00013698,2]
[333778232,1722485447639,-193.6297432,0.00013698,2]
[333778233,1722485447650,-500.0,0.00013698,2]
[333778234,1722485447659,-500.0,0.00013698,2]
[333778235,1722485447669,-231.54665563,0.00013698,2]
[333778236,1722485447678,-504.08179851,0.00013698,2]
[333778237,1722485447687,-501.73756623,0.00013698,2]
[333778238,1722485447696,-502.96156275,0.00013698,2]
[333778239,1722485447706,-500.0,0.00013698,2]
[333778240,1722485447715,-505.71807312,0.00013698,2]
[333778241,1722485447725,-508.99374725,0.00013698,2]
[333778242,1722485447735,-506.69993595,0.00013698,2]
[333778243,1722485447744,-561.42,0.00013698,2]
[333778244,1722485447754,-500.0,0.00013698,2]
[333778245,1722485447763,-505.82247748,0.00013698,2]
[333778246,1722485447773,-500.0,0.00013698,2]
[333778247,1722485447782,-505.40712946,0.00013698,2]
[333778248,1722485447792,-334.1755225,0.00013698,2]
[333778249,1722485447801,-500.0,0.00013698,2]
[333778250,1722485447810,-508.35995666,0.00013698,2]
[333778251,1722485447820,-513.56879311,0.00013698,2]
[333778252,1722485447829,-502.44193841,0.00013698,2]
[333778253,1722485447839,-502.70396112,0.00013698,2]
[333778254,1722485447849,-526.83900591,0.00013698,2]
[333778255,1722485447859,-505.66345766,0.00013698,2]
[333778256,1722485447868,-500.0,0.00013698,2]
[333778257,1722485447878,-506.06815867,0.00013698,2]
[333778258,1722485447887,-483.427735,0.00013698,2]
[333778259,1722485447899,-483.427735,0.00013698,2]
[333778260,1722485447908,-483.427735,0.00013698,2]
[333778261,1722485447917,-483.427735,0.00013698,2]
[333778262,1722485447929,-826.91,0.00013698,2]
[333778263,1722485447939,-507.8061347,0.00013698,2]
[333778264,1722485447949,-500.0,0.00013698,2]
[333778265,1722485447958,-500.0,0.00013698,2]
[333778266,1722485447968,-511.4925313,0.00013698,2]
[333778267,1722485447977,-504.12724164,0.00013698,2]
[333778268,1722485447987,-511.60107103,0.00013698,2]
[333778269,1722485447999,-501.22547461,0.00013698,2]
[333778270,1722485448011,-638.65753827,0.00013698,2]
[333778271,1722485448020,-505.97091059,0.00013698,2]
[333778272,1722485448030,-503.67901737,0.00013698,2]
[333778273,1722485448041,-503.8822071,0.00013698,2]
[333778274,1722485448050,-506.56112281,0.00013698,2]
[333778275,1722485448060,-506.14166312,0.00013698,2]
[333778276,1722485448070,-500.1195777,0.00013698,2]
[333778277,1722485448083,-517.59527975,0.00013698,2]
[333778278,1722485448095,-504.24890088,0.00013698,2]
[333778279,1722485448104,-500.0,0.00013698,2]
[333778280,1722485448114,-509.97900109,0.00013698,2]
[333778281,1722485448123,-235.212756,0.00013698,2]
[333778282,1722485448132,-182.7659168,0.00013698,2]
[333778283,1722485448144,-226.07421656,0.00013698,2]
[333778284,1722485448154,-500.0,0.00013698,2]
[333778285,1722485448163,-500.0,0.00013698,2]
[333778286,1722485448172,-591.57967001,0.00013698,2]
[333778287,1722485448182,-500.0,0.00013698,2]
[333778288,1722485448191,-500.0,0.00013698,2]
[333778289,1722485448200,-500.0,0.00013698,2]
[333778290,1722485448210,-500.0,0.00013698,2]
[333778291,1722485448219,-500.0,0.00013698,2]
[333778292,1722485448229,-500.0,0.00013698,2]
[333778293,1722485448238,-500.0,0.00013698,2]
[333778294,1722485448247,-500.0,0.00013698,2]
[333778295,1722485448257,-512.63214859,0.00013698,2]
[333778296,1722485448266,-500.0,0.00013698,2]
[333778297,1722485448276,-500.0,0.00013698,2]
[333778298,1722485448285,-500.0,0.00013698,2]
[333778299,1722485448294,-500.0,0.00013698,2]
[333778300,1722485448304,-500.0,0.00013698,2]
[333778301,1722485448314,-446.92320095,0.00013698,2]
[333778302,1722485448323,-500.0,0.00013698,2]
[333778303,1722485448332,-500.0,0.00013698,2]
[333778304,1722485448342,-500.0,0.00013698,2]
[333778305,1722485448352,-500.0,0.00013698,2]
[333778306,1722485448361,-500.0,0.00013698,2]
[333778307,1722485448370,-500.0,0.00013698,2]
[333778308,1722485448380,-672.14,0.00013698,2]
[333778309,1722485448389,-500.0,0.00013698,2]
[333778310,1722485448404,-516.70447889,0.00013698,2]
[333778311,1722485448414,-508.22781702,0.00013698,2]
[333778312,1722485448423,-501.26773467,0.00013698,2]
[333778313,1722485448432,-500.0,0.00013698,2]
[333778314,1722485448442,-500.0,0.00013698,2]
[333778315,1722485448451,-500.0,0.00013698,2]
[333778316,1722485448461,-151.0,0.00013698,2]
[333778317,1722485448470,-151.0,0.00013698,2]
[333778318,1722485448480,-500.0,0.00013698,2]
[333778319,1722485448489,-151.0,0.00013698,2]
[333778320,1722485448498,-504.16433052,0.00013698,2]
[333778321,1722485448508,-151.0,0.00013698,2]
[333778322,1722485448517,-500.0,0.00013698,2]
[333778323,1722485448527,-505.03278455,0.00013698,2]
[333778324,1722485448536,-500.0,0.00013698,2]
[333778325,1722485448546,-517.23,0.00013698,2]
[333778326,1722485448555,-500.0,0.00013698,2]
[333778327,1722485448564,-500.0,0.00013698,2]